bitfinex/quotes_ETHUSD_20240917
["timestamp","ask_amount","ask_price","bid_price","bid_amount"]
[1726568077397,0.06461089,2315.5,2315.2,4.31915]
[1726568077987,0.06461089,2315.5,2315.2,8.63834]
[1726568078499,0.06461089,2315.5,2315.3,4.31897]
[1726568078997,5.00288482,2315.7,2315.4,2.3164]
[1726568079198,4.55098195,2315.7,2315.4,6.63529]
[1726568079372,4.55098195,2315.7,2315.4,10.95418]
[1726568079573,0.45194047,2316.0,2315.6,4.31838]
[1726568079804,4.31781,2316.0,2315.6,4.31838]
[1726568080265,1.55098195,2315.9,2315.6,4.31838]
[1726568080466,1.55098195,2315.9,2315.6,8.63684]
[1726568080663,1.55098195,2315.9,2315.6,4.31838]
[1726568085905,1.55098195,2315.9,2315.4,7.06809]
[1726568085906,1.55098195,2315.9,2315.7,4.31831]
[1726568086302,3.09616915,2315.9,2315.7,4.31831]
[1726568086505,3.09616915,2315.9,2315.6,4.31851]
[1726568089029,0.45196608,2316.3,2315.9,6.80401]
[1726568089313,0.45196608,2316.3,2316.0,4.31763]
[1726568089522,12.56491195,2316.6,2316.0,4.31763]
[1726568089687,1.55098195,2316.4,2316.0,4.31763]
[1726568089886,1.55098195,2316.4,2316.1,4.31758]
[1726568090432,4.55098195,2316.4,2316.1,4.31758]
[1726568090974,0.05474381,2316.3,2316.1,4.31758]
[1726568091806,0.05474381,2316.3,2316.2,6.58841]
[1726568092031,3.0,2316.5,2316.2,2.271]
[1726568092234,3.0,2316.5,2316.2,6.58841]
[1726568092235,0.05486296,2316.4,2316.2,6.58841]
[1726568093085,0.05486296,2316.4,2316.2,2.271]
[1726568093283,1.60584491,2316.4,2316.2,2.271]
[1726568094098,1.60584491,2316.4,2316.2,6.5883]
[1726568094417,1.60584491,2316.4,2316.3,4.31723]
[1726568094418,0.05486296,2316.4,2316.3,4.31723]
[1726568094618,0.45197312,2316.7,2316.4,4.31694]
[1726568094803,0.05515394,2316.6,2316.4,4.31694]
[1726568095006,3.80398195,2316.8,2316.4,4.31694]
[1726568095227,0.05517453,2316.7,2316.3,4.31723]
[1726568095446,8.12030195,2316.8,2316.4,4.31703]
[1726568095646,0.05517453,2316.7,2316.3,4.31712]
[1726568096147,9.67933215,2316.8,2316.3,8.63426]
[1726568096444,3.05517453,2316.7,2316.3,4.31712]
[1726568098510,7.37168453,2316.7,2316.3,4.31712]
[1726568098711,1.55098195,2316.6,2316.3,4.31712]
[1726568099121,3.82898195,2316.4,2316.0,2.484]
[1726568099360,1.55098195,2316.2,2316.0,6.80174]
[1726568099523,1.93388015,2316.2,2315.8,4.31813]
[1726568099721,1.55098195,2316.0,2315.8,4.31813]
[1726568100022,0.05512919,2315.9,2315.8,4.31813]
[1726568102583,3.3601684,2316.2,2315.8,4.31813]
[1726568102763,0.05509952,2315.9,2315.8,4.31813]
[1726568102960,4.35571024,2316.2,2315.8,4.31813]
[1726568103169,0.05509952,2315.9,2315.8,4.31813]
[1726568103369,4.35571024,2316.2,2315.8,4.31813]
[1726568103669,2.3878,2315.9,2315.7,4.3183]
[1726568103851,7.62776379,2316.1,2315.7,4.3183]
[1726568104559,3.31008379,2316.1,2315.6,2.3284]
[1726568104760,4.31796,2316.0,2315.6,2.3284]
[1726568105068,0.05496257,2315.9,2315.6,2.3284]
[1726568105558,0.05496257,2315.9,2315.6,6.64688]
[1726568106879,6.62689,2315.8,2315.4,6.67309]
[1726568107268,0.0547739,2315.7,2315.4,6.67309]
[1726568107733,2.3087,2315.8,2315.4,6.67295]
[1726568107935,0.05477557,2315.6,2315.5,4.3187]
[1726568108131,2.3087,2315.8,2315.5,4.3187]
[1726568108359,0.05477557,2315.6,2315.5,4.3187]
[1726568108579,2.3087,2315.8,2315.5,4.3187]
[1726568108780,0.05477557,2315.6,2315.5,4.3187]
[1726568108979,2.3087,2315.8,2315.5,4.3187]
[1726568109188,0.05477557,2315.6,2315.4,6.67295]
[1726568109483,0.05477341,2315.5,2315.4,6.67295]
[1726568109951,8.21041446,2315.8,2315.4,6.67295]
[1726568110154,0.05476297,2315.5,2315.4,6.67295]
[1726568110353,6.62689,2315.8,2315.4,6.67295]
[1726568110665,8.21043346,2315.8,2315.4,6.67295]
[1726568110854,0.05481839,2315.7,2315.4,6.67295]
[1726568111057,8.21043346,2315.8,2315.4,6.67295]
[1726568111267,0.05481839,2315.7,2315.4,8.67295]
[1726568111643,11.57060186,2315.8,2315.4,8.67295]
[1726568111956,0.05481839,2315.7,2315.4,8.67295]
[1726568112476,0.05480579,2315.6,2315.4,8.67295]
[1726568112681,0.05480579,2315.6,2315.5,4.31872]
[1726568112843,2.3087,2315.8,2315.5,4.31872]
[1726568113180,0.05478818,2315.7,2315.5,4.31872]
[1726568113556,7.31798,2315.9,2315.5,4.31872]
[1726568113758,0.05480085,2315.6,2315.5,4.31872]
[1726568113991,3.0,2315.9,2315.6,4.31846]
[1726568114206,9.63366,2316.0,2315.6,4.31846]
[1726568114520,5.3158,2316.0,2315.5,4.31871]
[1726568114719,3.0,2316.1,2315.8,4.31807]
[1726568114924,7.47,2316.2,2316.0,4.31769]
[1726568115219,6.63296,2316.4,2316.0,4.31769]
[1726568115528,10.95009,2316.4,2315.9,4.31795]
[1726568115682,4.31726,2316.3,2315.9,4.31795]
[1726568116079,3.0,2316.2,2315.9,4.31795]
[1726568119499,2.87557764,2316.6,2316.2,4.3174]
[1726568119698,7.19227764,2316.6,2316.2,4.3174]
[1726568120135,6.7402,2316.6,2316.2,4.3174]
[1726568121019,3.0,2316.5,2316.2,4.3174]
[1726568121211,3.05127813,2316.5,2316.2,4.3174]
[1726568126286,0.05127813,2316.5,2316.3,2.3357]
[1726568127430,0.05127813,2316.5,2316.2,4.31734]
[1726568129044,0.04968399,2316.4,2316.2,4.31734]
[1726568129325,13.96095,2316.7,2316.2,4.31734]
[1726568129489,0.04967551,2316.3,2316.2,4.31734]
[1726568129689,3.0,2316.5,2316.2,4.31734]
[1726568130336,0.04968811,2316.4,2316.2,4.31734]
[1726568131686,0.04968811,2316.4,2316.1,11.08091]
[1726568131931,2.48868811,2316.4,2316.1,8.63499]
[1726568132129,2.48868811,2316.4,2316.2,4.31741]
[1726568132631,2.48868811,2316.4,2316.1,4.31748]
[1726568133499,2.48868811,2316.4,2316.2,4.31739]
[1726568134435,0.04968811,2316.4,2316.2,4.31739]
[1726568135289,0.04968811,2316.4,2316.1,4.31758]
[1726568135494,0.04968811,2316.4,2316.1,4.31749]
[1726568135746,0.04968811,2316.4,2316.2,4.31741]
[1726568140743,2.345,2316.3,2315.9,2.3541]
[1726568140942,3.89532502,2316.3,2316.0,4.31764]
[1726568141165,0.04973037,2316.2,2316.1,2.4668]
[1726568141490,2.345,2316.3,2315.9,8.63569]
[1726568141636,0.04970072,2316.2,2316.0,4.31776]
[1726568141841,2.345,2316.3,2316.0,4.31776]
[1726568142163,0.04970072,2316.2,2316.0,4.31776]
[1726568142481,8.34449502,2316.5,2316.0,4.31776]
[1726568142776,4.36678592,2316.4,2316.0,8.63547]
[1726568142943,0.04972592,2316.4,2316.2,4.31738]
[1726568143148,0.04972592,2316.4,2316.1,6.59307]
[1726568143544,0.04972592,2316.4,2316.2,4.31739]
[1726568143738,3.0,2316.6,2316.3,4.31723]
[1726568143942,7.31667,2316.6,2316.3,4.31723]
[1726568145353,7.31667,2316.6,2316.2,4.31736]
[1726568145649,7.31667,2316.6,2316.2,8.63465]
[1726568145848,7.31667,2316.6,2316.3,4.31722]
[1726568146089,13.1994895,2316.6,2316.2,4.31729]
[1726568146251,8.8827195,2316.6,2316.2,4.31729]
[1726568147691,4.5660495,2316.6,2316.3,4.31722]
[1726568147851,3.0,2316.6,2316.3,4.31722]
[1726568148447,7.31674,2316.6,2316.2,4.31729]
[1726568149167,7.31674,2316.6,2316.2,8.6346]
[1726568149487,7.31674,2316.6,2316.2,4.31729]
[1726568149665,2.2933,2316.5,2316.2,4.31729]
[1726568149867,5.2933,2316.5,2316.2,4.31729]
[1726568151353,0.04974416,2316.4,2316.2,4.31729]
[1726568154311,0.04974416,2316.4,2316.1,6.59309]
[1726568154312,0.04974416,2316.4,2316.1,6.59303]
[1726568154474,6.64354,2316.3,2316.0,4.31778]
[1726568154674,0.04971896,2316.2,2316.0,4.31778]
[1726568154895,2.3263,2316.3,2316.0,4.31778]
[1726568155101,0.04972339,2316.2,2316.0,4.31778]
[1726568155370,2.3263,2316.3,2316.0,4.31778]
[1726568155500,0.04971079,2316.1,2316.0,4.31778]
[1726568155709,2.3263,2316.3,2316.0,4.31778]
[1726568156015,0.04971079,2316.1,2316.0,4.31778]
[1726568156223,2.3263,2316.3,2316.0,4.31778]
[1726568156816,0.04972339,2316.2,2316.0,4.31778]
[1726568157178,2.3263,2316.3,2316.0,4.31778]
[1726568157378,0.04971079,2316.1,2316.0,4.31778]
[1726568157613,2.3263,2316.3,2316.0,4.31778]
[1726568158393,0.04972339,2316.2,2316.0,4.31778]
[1726568158922,0.04968061,2316.1,2316.0,4.31778]
[1726568159293,2.3263,2316.3,2316.0,4.31778]
[1726568159506,0.04972339,2316.2,2316.0,4.31778]
[1726568159673,2.3263,2316.3,2316.0,4.31778]
[1726568159987,0.04972339,2316.2,2316.0,4.31778]
[1726568160193,2.3263,2316.3,2316.0,4.31778]
[1726568160403,0.04971079,2316.1,2316.0,4.31778]
[1726568160609,6.64355,2316.3,2316.0,4.31778]
[1726568160785,0.04971079,2316.1,2316.0,4.31778]
[1726568161293,0.04971079,2316.1,2316.0,8.63547]
[1726568161481,2.3263,2316.3,2316.0,4.31769]
[1726568161682,0.04972339,2316.2,2316.0,4.31769]
[1726568161984,2.3263,2316.3,2316.0,4.31769]
[1726568162510,0.04972339,2316.2,2316.0,4.31769]
[1726568162933,2.3263,2316.3,2316.0,4.31769]
[1726568163145,0.04971079,2316.1,2316.0,4.31769]
[1726568163809,2.3263,2316.3,2316.0,4.31769]
[1726568164029,0.04971079,2316.1,2316.0,4.31769]
[1726568164537,2.3263,2316.3,2316.0,4.31769]
[1726568164696,0.04971079,2316.1,2316.0,4.31769]
[1726568164900,2.3263,2316.3,2316.0,4.31769]
[1726568165395,0.04972339,2316.2,2316.0,4.31769]
[1726568165936,9.57657,2316.5,2316.1,4.3176]
[1726568166133,4.31704,2316.4,2316.1,4.3176]
[1726568166304,4.31704,2316.4,2316.0,4.31769]
[1726568166728,2.4737,2316.0,2315.8,4.75097]
[1726568167055,6.79112,2316.2,2315.8,4.31807]
[1726568169324,2.4737,2316.2,2315.8,4.31807]
[1726568169628,2.4737,2316.2,2315.9,4.31794]
[1726568169810,2.4737,2316.2,2315.8,4.31807]
[1726568170567,2.4737,2316.2,2315.9,4.31794]
[1726568170770,2.4737,2316.2,2315.9,6.63994]
[1726568171578,6.79115,2316.2,2315.8,4.31814]
[1726568172836,6.79115,2316.2,2315.8,8.63628]
[1726568173077,6.79115,2316.2,2315.8,4.31814]
[1726568173440,2.4737,2316.2,2315.8,4.31804]
[1726568173641,2.4737,2316.2,2315.9,4.31797]
[1726568173936,2.4737,2316.2,2315.7,2.322]
[1726568173937,3.0,2316.3,2315.7,6.64017]
[1726568174215,7.31725,2316.3,2315.9,4.31794]
[1726568174500,5.432,2316.4,2316.1,4.3175]
[1726568175079,5.432,2316.4,2316.1,6.6539]
[1726568175265,5.432,2316.4,2316.1,4.3175]
[1726568175667,1.55032502,2316.3,2315.7,2.7696]
[1726568175996,6.775,2316.2,2315.8,4.31799]
[1726568176505,6.775,2316.2,2315.7,4.31819]
[1726568176506,2.4575,2316.0,2315.7,4.31819]
[1726568176793,2.4575,2316.0,2315.7,8.63646]
[1726568177203,2.4575,2316.0,2315.8,4.31813]
[1726568178402,2.4823,2316.2,2315.9,4.31797]
[1726568179986,7.31732,2316.3,2315.9,4.31797]
[1726568180755,11.63473,2316.3,2315.9,4.31797]
[1726568180960,13.028323,2316.3,2315.9,4.31797]
[1726568181162,4.36700912,2316.2,2315.8,6.67801]
[1726568181401,2.3967,2316.1,2315.8,4.31811]
[1726568181571,6.76388652,2316.1,2315.8,4.31811]
[1726568181765,6.76388652,2316.1,2315.7,4.31829]
[1726568182460,6.76388652,2316.1,2315.7,8.63649]
[1726568182917,2.44628652,2316.1,2315.8,4.31813]
[1726568184573,0.04958652,2316.1,2315.9,4.31794]
[1726568184804,0.04958652,2316.1,2315.9,4.31787]
[1726568185092,9.70533,2316.3,2315.9,4.31787]
[1726568185398,4.31742,2316.2,2315.9,4.31787]
[1726568185572,4.36704384,2316.2,2315.9,4.31787]
[1726568186102,0.04962384,2316.2,2315.9,4.31787]
[1726568186488,9.70534,2316.3,2315.9,4.31787]
[1726568186693,0.04961124,2316.1,2315.9,4.31787]
[1726568186861,9.70534,2316.3,2315.9,4.31787]
[1726568187057,0.04959863,2316.0,2315.9,4.31787]
[1726568187260,9.70534,2316.3,2315.9,4.31787]
[1726568187462,0.04959863,2316.0,2315.9,4.31787]
[1726568187700,11.44358423,2316.3,2315.9,4.31787]
[1726568188003,2.3743,2316.0,2315.7,4.31819]
[1726568188361,0.04960086,2315.9,2315.7,4.31819]
[1726568189235,0.04960086,2315.9,2315.8,4.31816]
[1726568192387,0.04960086,2315.9,2315.7,4.3183]
[1726568192681,0.04960086,2315.9,2315.8,4.31816]
[1726568193795,11.07662,2316.2,2315.8,4.31816]
[1726568193993,0.04963392,2315.9,2315.8,4.31816]
[1726568194189,9.42361166,2316.2,2315.8,4.31816]
[1726568194496,0.04963392,2315.9,2315.8,4.31816]
[1726568194703,6.75912,2316.2,2315.8,4.31816]
[1726568194902,0.04963392,2315.9,2315.8,4.31816]
[1726568195111,6.75912,2316.2,2315.8,8.63617]
[1726568195287,0.04963392,2315.9,2315.8,8.63617]
[1726568195643,6.75912,2316.2,2315.9,2.484]
[1726568195994,4.31742,2316.2,2315.9,6.80195]
[1726568196191,0.04965912,2316.1,2315.9,6.80195]
[1726568196429,0.04965912,2316.1,2315.9,2.484]
[1726568196939,3.57849003,2316.1,2315.7,6.79975]
[1726568197135,0.04965912,2316.1,2315.9,4.31796]
[1726568197425,9.67763,2316.3,2315.8,8.63612]
[1726568197426,4.31742,2316.2,2315.8,8.63612]
[1726568197633,0.04966629,2316.0,2315.8,4.31806]
[1726568197802,9.67765,2316.3,2315.8,4.31806]
[1726568198005,12.16011923,2316.3,2315.9,6.79938]
[1726568198196,16.47745923,2316.3,2315.9,6.79938]
[1726568198411,12.16011923,2316.3,2315.9,6.79938]
[1726568198611,9.67765,2316.3,2316.0,4.31777]
[1726568198832,2.3604,2316.3,2316.0,4.31777]
[1726568199131,7.31706,2316.4,2316.0,4.31777]
[1726568199516,4.31674,2316.6,2316.2,6.77894]
[1726568199715,9.8782,2316.7,2316.2,6.77894]
[1726568199716,17.55489232,2316.7,2316.2,6.77894]
[1726568199919,6.72506,2316.5,2316.1,4.31749]
[1726568200563,6.72506,2316.5,2315.9,4.31785]
[1726568200564,2.4082,2316.3,2315.9,4.31785]
[1726568200759,2.4082,2316.3,2316.0,4.31772]
[1726568203250,2.4082,2316.3,2316.0,4.31776]
[1726568204959,2.4082,2316.3,2316.0,4.31766]
[1726568205265,6.66566,2316.5,2316.1,6.81216]
[1726568205472,1.098251,2316.4,2316.1,6.81216]
[1726568205674,6.66566,2316.5,2316.1,6.81216]
[1726568205830,6.66566,2316.5,2316.1,11.12966]
[1726568206032,2.3488,2316.5,2316.2,4.31729]
[1726568207367,6.66572,2316.5,2316.1,6.81217]
[1726568207579,8.39997623,2316.5,2316.1,6.81217]
[1726568209058,8.39997623,2316.5,2316.1,4.31757]
[1726568211311,0.04979044,2316.4,2316.1,4.31757]
[1726568211509,4.36683044,2316.4,2316.1,4.31757]
[1726568211815,0.04979044,2316.4,2316.1,4.31757]
[1726568215278,0.04979044,2316.4,2316.0,4.31774]
[1726568215636,4.31723,2316.3,2315.9,2.2819]
[1726568215838,6.75082,2316.2,2315.8,4.31808]
[1726568216144,6.80059018,2316.2,2315.8,4.31808]
[1726568216641,4.31768,2316.1,2315.7,11.37356]
[1726568216811,4.31795,2316.0,2315.5,2.3488]
[1726568216998,4.31795,2316.0,2315.5,6.66741]
[1726568216999,8.28365075,2315.9,2315.5,6.66741]
[1726568217204,6.78301936,2315.9,2315.5,6.66741]
[1726568217429,6.78301936,2315.9,2315.5,10.98597]
[1726568217609,0.04973936,2315.9,2315.6,4.31847]
[1726568217810,0.04973936,2315.9,2315.7,2.4381]
[1726568218638,4.36771936,2315.9,2315.7,2.4381]
[1726568219437,4.36771936,2315.9,2315.5,6.60768]
[1726568220507,4.31816,2315.8,2315.5,2.289]
[1726568220708,4.31835,2315.7,2315.4,2.4332]
[1726568220902,4.36797057,2315.7,2315.4,2.4332]
[1726568221312,4.36797057,2315.7,2315.4,6.75209]
[1726568222650,8.68645057,2315.7,2315.4,2.4332]
[1726568222946,6.75272,2315.5,2315.4,2.0]
[1726568223178,6.80222478,2315.5,2315.4,2.0]
[1726568226830,0.04950478,2315.5,2315.4,2.0]
[1726568227035,0.04950478,2315.5,2315.4,2.859949]
[1726568227843,0.04950478,2315.5,2315.4,2.0]
[1726568228576,6.80992478,2315.5,2315.4,2.0]
[1726568229441,11.12864478,2315.5,2315.4,2.0]
[1726568230340,14.12864478,2315.5,2315.4,2.0]
[1726568234816,11.68694478,2315.5,2315.4,2.0]
[1726568235690,7.36822478,2315.5,2315.4,2.0]
[1726568236014,0.04950478,2315.5,2315.4,4.307]
[1726568236218,0.04950478,2315.5,2315.4,9.488518]
[1726568236382,0.04950478,2315.5,2315.4,8.6259]
[1726568236586,0.04950478,2315.5,2315.4,12.9448]
[1726568236775,14.23847,2316.1,2315.6,4.31838]
[1726568237110,4.31793,2316.0,2315.7,2.307]
[1726568237297,11.78762,2316.1,2315.7,6.62534]
[1726568238317,4.31779,2316.0,2315.7,2.307]
[1726568238515,16.10535,2316.1,2315.7,2.307]
[1726568239405,4.31783,2316.0,2315.7,2.307]
[1726568241328,0.04770326,2315.9,2315.7,2.307]
[1726568242211,0.04770326,2315.9,2315.7,6.62532]
[1726568242437,0.04770326,2315.9,2315.8,1.094382]
[1726568242592,8.63539,2316.1,2315.8,1.094382]
[1726568242804,12.23927733,2316.5,2316.1,2.2544]
[1726568242995,4.31659,2316.7,2316.1,2.2544]
[1726568243340,6.66922,2316.8,2316.2,4.31729]
[1726568243543,4.31639,2316.8,2316.2,4.31729]
[1726568243697,4.31679,2316.6,2316.2,4.3174]
[1726568243902,4.31648,2316.7,2316.3,4.3172]
[1726568244339,3.0,2316.7,2316.3,4.3172]
[1726568244999,3.0,2316.7,2316.4,2.2544]
[1726568245506,7.3166,2316.7,2316.4,2.2544]
[1726568245822,1.163294,2316.6,2316.2,4.3174]
[1726568246129,7.3166,2316.7,2316.2,4.3174]
[1726568248146,4.31667,2316.6,2316.2,4.3174]
[1726568249030,3.0,2316.7,2316.3,4.31712]
[1726568249237,4.31649,2316.7,2316.3,4.31712]
[1726568249455,3.0,2316.6,2316.3,4.31712]
[1726568250252,7.31633,2316.8,2316.4,2.3092]
[1726568250557,3.0,2316.6,2316.4,2.3092]
[1726568251343,3.0,2316.7,2316.4,2.3092]
[1726568252256,7.3165,2316.7,2316.4,2.3092]
[1726568253926,7.31632,2316.8,2316.4,2.3092]
[1726568254235,4.3165,2316.7,2316.4,2.3092]
[1726568254438,3.0,2316.6,2316.4,2.3092]
[1726568254820,3.0,2316.7,2316.4,6.62612]
[1726568255280,0.4523061,2317.0,2316.5,2.3076]
[1726568255482,0.4523061,2317.0,2316.9,10.93982]
[1726568255758,7.5088433,2317.4,2316.9,2.3076]
[1726568255921,7.5088433,2317.4,2317.1,4.31561]
[1726568256121,7.5088433,2317.4,2316.9,2.3076]
[1726568256122,0.04385714,2317.3,2316.9,2.3076]
[1726568256348,0.04385714,2317.3,2317.2,11.0769]
[1726568256719,0.04385714,2317.3,2317.2,18.75213513]
[1726568257134,0.04385714,2317.3,2317.2,15.39245]
[1726568257329,0.0388433,2317.4,2317.3,8.63072]
[1726568257544,0.0388433,2317.4,2317.3,16.739187]
[1726568257761,0.0388433,2317.4,2317.3,12.423827]
[1726568265363,0.0388433,2317.4,2317.2,4.31544]
[1726568265685,0.0388433,2317.4,2317.2,4.31541]
[1726568265829,0.0388433,2317.4,2317.3,8.63072]
[1726568266030,0.0388433,2317.4,2317.3,10.96042]
[1726568268378,0.0388433,2318.1,2318.0,12.94218]
[1726568268542,0.0388433,2318.1,2318.0,16.588198]
[1726568269562,0.0388433,2318.1,2318.0,12.274138]
[1726568270273,0.0388433,2318.1,2318.0,24.81194313]
[1726568270483,0.0388433,2318.1,2318.0,25.24514313]
[1726568270775,0.0388433,2318.1,2318.0,28.24514313]
[1726568270941,0.0388433,2318.8,2318.0,28.24514313]
[1726568270942,0.0388433,2318.8,2318.7,10.99402]
[1726568271150,0.0388433,2318.8,2318.7,15.30678]
[1726568271470,0.0388433,2318.8,2318.7,16.28998]
[1726568272437,0.0388433,2318.8,2318.7,11.97722]
[1726568272680,0.0388433,2318.8,2318.7,16.28998]
[1726568272977,0.0388433,2318.8,2318.7,18.68625151]
[1726568273274,0.0388433,2318.8,2318.7,14.37349151]
[1726568274364,0.0388433,2318.8,2318.7,16.37349151]
[1726568274867,0.0388433,2318.8,2318.7,20.68625151]
[1726568275271,0.0388433,2318.8,2318.7,16.37349151]
[1726568275860,0.0388433,2318.8,2318.7,20.68625151]
[1726568276093,0.0388433,2318.8,2318.7,16.37349151]
[1726568276613,0.0388433,2318.8,2318.7,15.94029151]
[1726568277103,0.0388433,2318.8,2318.7,15.39029151]
[1726568278026,0.0388433,2318.8,2318.7,8.70903151]
[1726568278303,0.0388433,2318.8,2318.7,6.31276]
[1726568278981,0.0388433,2318.8,2318.7,10.62552]
[1726568280695,0.0388433,2318.8,2318.7,6.31276]
[1726568281018,0.0388433,2318.8,2318.7,8.75456]
[1726568281170,0.0388433,2318.8,2318.7,21.72296513]
[1726568281369,0.0388433,2318.8,2318.7,23.89526164]
[1726568281606,0.0388433,2318.8,2318.7,20.10237651]
[1726568282215,0.0388433,2318.8,2318.7,12.79781651]
[1726568282381,0.0388433,2318.8,2318.7,2.0]
[1726568282592,0.0388433,2318.8,2318.7,17.39998]
[1726568282968,0.0388433,2318.8,2318.7,13.08722]
[1726568283374,0.0388433,2318.8,2318.7,20.75966513]
[1726568283707,0.0388433,2318.8,2318.7,21.30966513]
[1726568284019,0.0388433,2319.5,2318.7,21.30966513]
[1726568284020,0.0388433,2319.5,2319.4,15.26395]
[1726568284224,0.0388433,2319.5,2319.4,19.60683513]
[1726568284419,0.0388433,2319.5,2319.4,15.26395]
[1726568285124,0.0388433,2319.5,2319.4,10.9525]
[1726568285620,4.3488433,2320.2,2320.1,4.31015]
[1726568285621,0.0388433,2320.2,2320.1,4.31015]
[1726568287230,0.0388433,2320.2,2319.9,4.31048]
[1726568287818,0.0388433,2320.2,2319.8,4.31057]
[1726568288022,0.0388433,2320.2,2319.9,4.31051]
[1726568288934,4.3488633,2320.2,2319.8,0.671877]
[1726568289241,2.3854,2319.7,2319.3,4.31151]
[1726568289454,6.69638,2319.7,2319.2,4.31181]
[1726568289730,8.6223,2319.6,2319.1,4.312]
[1726568289954,4.3111,2319.6,2319.1,5.174416]
[1726568290108,2.3854,2319.7,2319.4,4.31132]
[1726568290440,2.3854,2319.7,2319.1,1.38183853]
[1726568290441,4.31129,2319.5,2319.1,0.862416]
[1726568290640,4.31129,2319.5,2319.0,4.3121]
[1726568290815,4.3111,2319.6,2319.1,4.312]
[1726568291352,2.4912,2319.3,2318.9,4.31225]
[1726568291494,6.80286,2319.3,2318.8,4.31255]
[1726568291694,2.4912,2319.3,2318.7,2.0]
[1726568292001,2.4912,2319.3,2318.9,4.31237]
[1726568292198,7.31118,2319.6,2318.9,4.50839838]
[1726568292199,2.446,2319.5,2318.9,4.50839838]
[1726568292499,3.0,2319.6,2319.0,4.31204]
[1726568292500,7.31112,2319.6,2319.0,4.31204]
[1726568292733,6.35968513,2319.6,2318.9,1.062481]
[1726568292903,2.446,2319.5,2319.0,4.31205]
[1726568293105,0.0388433,2320.2,2319.1,5.85501733]
[1726568293106,2.3791,2320.1,2319.1,5.85501733]
[1726568293304,2.3791,2320.1,2319.3,3.79288513]
[1726568293539,2.3791,2320.1,2319.7,4.3108]
[1726568293692,2.3791,2320.1,2319.7,4.39700349]
[1726568294804,2.4276,2319.7,2319.1,2.4091]
[1726568295014,3.0,2320.1,2319.6,4.31095]
[1726568295238,3.0,2320.1,2319.7,4.39699309]
[1726568295530,3.0,2320.1,2319.8,4.31069]
[1726568295734,0.0388433,2320.2,2319.8,4.31069]
[1726568296436,0.0388433,2320.2,2320.1,8.6203]
[1726568296633,0.0388433,2320.2,2320.1,9.49095029]
[1726568301150,4.79909834,2320.9,2320.5,4.30934]
[1726568301151,0.49031834,2320.9,2320.5,4.30934]
[1726568301318,0.49031834,2320.9,2320.5,8.61865]
[1726568301797,0.49031834,2320.9,2320.1,8.55460029]
[1726568301798,0.49031834,2320.9,2320.6,4.30922]
[1726568302210,0.47885034,2320.9,2320.6,4.30922]
[1726568302510,0.47885034,2320.9,2320.5,4.3094]
[1726568302748,0.47885034,2320.9,2320.8,15.83165]
[1726568303048,0.47885034,2320.9,2320.8,20.5737]
[1726568303254,0.0273753,2320.9,2320.8,16.26485]
[1726568304349,0.0273753,2320.9,2320.8,15.83165]
[1726568304521,0.0273753,2320.9,2320.8,4.30885]
[1726568305052,2.3877,2320.8,2320.4,4.30941]
[1726568305438,6.69656,2320.8,2320.4,4.30941]
[1726568305642,6.69656,2320.8,2320.4,1.100043]
[1726568305814,6.69665,2320.8,2320.3,0.08617582]
[1726568306015,4.30915,2320.7,2320.3,0.08617582]
[1726568306218,4.30942,2320.5,2320.1,5.18080029]
[1726568306513,4.30942,2320.5,2319.9,4.3105]
[1726568306514,4.30961,2320.4,2319.9,4.3105]
[1726568306708,4.30961,2320.4,2319.8,8.62119]
[1726568306912,4.30998,2320.2,2319.7,4.31085]
[1726568307156,4.30998,2320.2,2319.7,4.39704954]
[1726568307452,4.11832714,2320.7,2320.3,4.30975]
[1726568307453,3.0,2320.7,2320.3,4.30975]
[1726568307823,3.0,2320.7,2320.3,4.39593108]
[1726568308028,7.3360553,2320.9,2320.3,4.39593108]
[1726568308247,4.30886,2320.8,2320.3,4.39593108]
[1726568308557,3.0,2320.7,2320.3,4.39593108]
[1726568309457,3.0,2320.7,2320.2,4.30983]
[1726568309458,5.362,2320.7,2320.2,4.30983]
[1726568309649,5.362,2320.7,2320.3,4.30977]
[1726568311118,5.362,2320.7,2320.2,4.30983]
[1726568311375,4.30942,2320.5,2320.0,4.3102]
[1726568311657,2.362,2320.2,2319.8,4.31056]
[1726568311872,6.672,2320.2,2319.7,4.31089]
[1726568312164,6.672,2320.2,2319.7,0.862185]
[1726568312165,7.31025,2320.1,2319.7,0.862185]
[1726568312316,7.31025,2320.1,2319.6,4.31096]
[1726568312317,4.31037,2320.0,2319.6,4.31096]
[1726568312518,4.31037,2320.0,2319.5,4.31125]
[1726568312830,4.31037,2320.0,2319.6,0.862256]
[1726568313034,8.62122,2319.9,2319.4,4.31131]
[1726568313385,3.0,2320.1,2319.1,9.6697]
[1726568313386,4.31111,2319.6,2319.1,4.31191]
[1726568313568,4.31101,2319.7,2319.2,4.742931]
[1726568313855,2.255,2319.8,2319.5,4.31124]
[1726568314060,6.56581,2319.8,2319.3,4.39774804]
[1726568314219,2.255,2319.8,2319.4,5.2254029]
[1726568314623,2.255,2319.8,2319.4,5.2253929]
[1726568314972,3.13842798,2321.4,2320.1,4.31013]
[1726568314973,2.255,2320.5,2320.1,4.31013]
[1726568315172,6.5645,2320.5,2320.0,4.31032]
[1726568315323,6.5645,2320.5,2320.0,4.39650966]
[1726568315821,4.30969,2320.4,2319.9,4.3105]
[1726568317339,4.30979,2320.3,2319.8,8.62118]
[1726568317644,3.0,2320.3,2319.9,4.31042]
[1726568317843,4.30996,2320.3,2319.7,4.31089]
[1726568318234,4.30999,2320.2,2319.7,4.39709456]
[1726568318431,8.61985,2320.3,2319.7,4.39709456]
[1726568318637,8.61985,2320.3,2319.8,4.3107]
[1726568318844,4.30989,2320.3,2319.8,4.3107]
[1726568319067,8.61978,2320.3,2319.8,4.3107]
[1726568319670,8.61983,2320.3,2319.8,4.3107]